fUSD/lending_fUSD_20241207
["ID","MTS","AMOUNT","RATE_DAILY","PERIOD"]
[344565151,1733551842584,-500.0,0.00012599,2]
[344565152,1733551842594,-500.0,0.00012599,2]
[344565153,1733551842604,-500.0,0.00012599,2]
[344565154,1733551842614,-500.0,0.00012599,2]
[344565155,1733551842624,-500.0,0.00012599,2]
[344565156,1733551842633,-500.0,0.00012599,2]
[344565157,1733551842643,-500.0,0.00012599,2]
[344565158,1733551842653,-500.0,0.00012599,2]
[344565159,1733551842662,-500.0,0.00012599,2]
[344565160,1733551842672,-500.0,0.00012599,2]
[344565161,1733551842681,-500.0,0.00012599,2]
[344565162,1733551842691,-500.0,0.00012599,2]
[344565163,1733551842701,-500.0,0.00012599,2]
[344565164,1733551842710,-500.0,0.00012599,2]
[344565165,1733551842720,-380.67,0.00012599,2]
[344565166,1733551842729,-273.93,0.00012599,2]
[344565167,1733551842739,-500.0,0.00012599,2]
[344565168,1733551842749,-500.0,0.00012599,2]
[344565169,1733551842758,-500.0,0.00012599,2]
[344565170,1733551842767,-373.07,0.00012599,2]
[344565171,1733551842777,-500.0,0.00012599,2]
[344565172,1733551842787,-500.0,0.00012599,2]
[344565174,1733551842796,-1400.0,0.000126,4]
[344565175,1733551842806,-1000.0,0.000126,2]
[344565176,1733551842817,-1022.69800457,0.00012616,2]
[344565177,1733551842827,-1092.16598821,0.00012616,2]
[344565178,1733551842837,-440.68,0.00012693,2]
[344565179,1733551842846,-364.0,0.000127,2]
[344565180,1733551842856,-2100.0,0.000127,4]
[344565181,1733551842866,-230.0,0.000127,2]
[344565182,1733551842875,-599.92380184,0.00012773,2]
[344565183,1733551842886,-1087.22665374,0.00012773,2]
[344565184,1733551842896,-2004.0,0.00012791,2]
[344565185,1733551842905,-1252.0,0.00012791,2]
[344565186,1733551842915,-535.0,0.00012791,2]
[344565187,1733551842925,-973.0,0.00012791,2]
[344565188,1733551842934,-3529.0,0.00012791,2]
[344565189,1733551842944,-166.44727027,0.00012798,2]
[344565190,1733551842954,-122005.04029224,0.000128,2]
[344565192,1733551843752,-8246.7,0.000128,2]
[344565193,1733551843795,-289.4002629,0.00012224,2]
[344565194,1733551843806,-926.27390525,0.00012224,2]
[344565195,1733551843819,-119748.25970776,0.000128,2]
[344565196,1733551843828,-2900.0,0.000128,4]
[344565197,1733551843838,-200.0,0.00012833,2]
[344565198,1733551843848,-716.24,0.00012871,2]
[344565199,1733551843858,-500.0,0.00012871,2]
[344565200,1733551843867,-1262.68,0.00012871,2]
[344565201,1733551843876,-500.0,0.00012871,2]
[344565202,1733551843885,-500.0,0.00012871,2]
[344565203,1733551843894,-669.04,0.00012871,2]
[344565204,1733551843903,-500.0,0.00012871,2]
[344565205,1733551843912,-729.01,0.00012871,2]
[344565206,1733551843921,-500.0,0.00012871,2]
[344565207,1733551843930,-500.0,0.00012871,2]
[344565208,1733551843941,-2446.28,0.00012871,2]
[344565209,1733551843950,-500.0,0.00012871,2]
[344565210,1733551843959,-745.11,0.00012871,2]
[344565211,1733551843968,-500.0,0.00012871,2]
[344565212,1733551843977,-500.0,0.00012871,2]
[344565213,1733551843987,-797.91,0.00012871,2]
[344565214,1733551843996,-2368.11,0.00012871,2]
[344565215,1733551844005,-500.0,0.00012871,2]
[344565216,1733551844014,-500.0,0.00012871,2]
[344565217,1733551844023,-500.0,0.00012871,2]
[344565218,1733551844032,-500.0,0.00012871,2]
[344565219,1733551844040,-500.0,0.00012871,2]
[344565220,1733551844050,-1810.9,0.00012871,2]
[344565221,1733551844060,-500.0,0.00012871,2]
[344565222,1733551844072,-664.77,0.00012871,2]
[344565223,1733551844081,-500.0,0.00012871,2]
[344565224,1733551844091,-2410.65,0.00012871,2]
[344565225,1733551844099,-500.0,0.00012871,2]
[344565226,1733551844110,-717.44,0.00012871,2]
[344565227,1733551844119,-738.24,0.00012871,2]
[344565228,1733551844128,-1075.14,0.00012871,2]
[344565229,1733551844138,-500.0,0.00012871,2]
[344565230,1733551844147,-500.0,0.00012871,2]
[344565231,1733551844156,-1111.44752749,0.00012871,2]
[344565232,1733551844168,-320.63247251,0.00012871,2]
[344565233,1733551844177,-963.86,0.00012871,2]
[344565234,1733551844186,-948.7,0.00012871,2]
[344565235,1733551844195,-500.0,0.00012871,2]
[344565236,1733551844204,-500.0,0.00012871,2]
[344565237,1733551844213,-500.0,0.00012871,2]
[344565238,1733551844224,-500.0,0.00012871,2]
[344565239,1733551844233,-500.0,0.00012871,2]
[344565240,1733551844243,-500.0,0.00012871,2]
[344565241,1733551844251,-500.0,0.00012871,2]
[344565242,1733551844261,-500.0,0.00012871,2]
[344565243,1733551844270,-708.62,0.00012871,2]
[344565244,1733551844279,-500.0,0.00012872,2]
[344565245,1733551844289,-500.0,0.00012872,2]
[344565246,1733551844298,-500.0,0.00012872,2]
[344565247,1733551844307,-500.0,0.00012872,2]
[344565248,1733551844319,-500.0,0.00012872,2]
[344565249,1733551844328,-500.0,0.00012872,2]
[344565250,1733551844337,-500.0,0.00012872,2]
[344565251,1733551844347,-500.0,0.00012872,2]
[344565252,1733551844356,-500.0,0.00012872,2]
[344565253,1733551844366,-500.0,0.00012872,2]
[344565254,1733551844375,-500.0,0.00012872,2]
[344565255,1733551844385,-201.52,0.00012872,2]
[344565256,1733551844394,-500.0,0.00012872,2]
[344565257,1733551844403,-500.0,0.00012872,2]
[344565258,1733551844412,-500.0,0.00012872,2]
[344565259,1733551844422,-500.0,0.00012872,2]
[344565260,1733551844431,-500.0,0.00012872,2]
[344565261,1733551844440,-500.0,0.00012872,2]
[344565262,1733551844450,-500.0,0.00012872,2]
[344565263,1733551844459,-338.90329015,0.00012872,2]
[344565264,1733551844511,-161.09670985,0.00012872,2]
[344565265,1733551844521,-500.0,0.00012872,2]
[344565266,1733551844531,-500.0,0.00012872,2]
[344565267,1733551844540,-500.0,0.00012872,2]
[344565268,1733551844550,-500.0,0.00012872,2]
[344565269,1733551844560,-500.0,0.00012872,2]
[344565270,1733551844571,-500.0,0.00012872,2]
[344565271,1733551844581,-500.0,0.00012872,2]
[344565272,1733551844590,-500.0,0.00012872,2]
[344565273,1733551844600,-500.0,0.00012872,2]
[344565274,1733551844610,-1114.76,0.00012872,2]
[344565275,1733551844619,-500.49,0.00012872,2]
[344565276,1733551844629,-500.0,0.00012872,2]
[344565277,1733551844639,-500.0,0.00012872,2]
[344565278,1733551844648,-500.0,0.00012872,2]
[344565279,1733551844658,-500.0,0.00012872,2]
[344565280,1733551844668,-500.0,0.00012872,2]
[344565281,1733551844677,-500.0,0.00012872,2]
[344565282,1733551844687,-639.85,0.00012872,2]
[344565283,1733551844696,-500.0,0.00012872,2]
[344565284,1733551844705,-235.32,0.00012872,2]
[344565285,1733551844716,-500.0,0.00012872,2]
[344565286,1733551844726,-500.0,0.00012872,2]
[344565287,1733551844735,-500.0,0.00012872,2]
[344565288,1733551844745,-539.11,0.00012872,2]
[344565289,1733551844755,-500.0,0.00012872,2]
[344565290,1733551844764,-500.0,0.00012872,2]
[344565291,1733551844774,-500.0,0.00012872,2]
[344565292,1733551844783,-500.0,0.00012872,2]
[344565293,1733551844793,-840.53,0.00012872,2]
[344565294,1733551844802,-500.0,0.00012872,2]
[344565295,1733551844812,-500.0,0.00012872,2]
[344565296,1733551844822,-500.0,0.00012872,2]
[344565297,1733551844832,-767.33,0.00012872,2]
[344565298,1733551844842,-500.0,0.00012872,2]
[344565299,1733551844852,-500.0,0.00012872,2]
[344565300,1733551844862,-500.0,0.00012872,2]
[344565301,1733551844871,-500.0,0.00012872,2]
[344565302,1733551844880,-500.0,0.00012872,2]
[344565303,1733551844889,-500.0,0.00012872,2]
[344565304,1733551844899,-538.37,0.00012872,2]
[344565305,1733551844908,-500.0,0.00012872,2]
[344565306,1733551844918,-500.0,0.00012872,2]
[344565307,1733551844928,-500.0,0.00012872,2]
[344565308,1733551844938,-500.0,0.00012872,2]
[344565309,1733551844947,-604.67,0.00012872,2]
[344565310,1733551844957,-500.0,0.00012872,2]
[344565311,1733551844966,-500.0,0.00012872,2]
[344565312,1733551844976,-500.0,0.00012872,2]
[344565313,1733551844985,-500.0,0.00012872,2]
[344565314,1733551844995,-500.0,0.00012872,2]
[344565315,1733551845004,-500.0,0.00012872,2]
[344565316,1733551845014,-500.0,0.00012872,2]
[344565317,1733551845023,-500.0,0.00012872,2]
[344565318,1733551845033,-611.16,0.00012872,2]
[344565319,1733551845042,-500.0,0.00012872,2]
[344565320,1733551845052,-500.0,0.00012872,2]
[344565321,1733551845067,-500.0,0.00012872,2]
[344565322,1733551845076,-1918.93,0.00012872,2]
[344565323,1733551845085,-844.94,0.00012872,2]
[344565324,1733551845095,-569.22,0.00012872,2]
[344565325,1733551845106,-500.0,0.00012872,2]
[344565326,1733551845115,-500.0,0.00012872,2]
[344565327,1733551845125,-500.0,0.00012872,2]
[344565328,1733551845137,-617.25,0.00012872,2]
[344565329,1733551845147,-500.0,0.00012872,2]
[344565330,1733551845157,-2173.71,0.00012872,2]
[344565331,1733551845167,-500.0,0.00012872,2]
[344565332,1733551845178,-500.0,0.00012872,2]
[344565333,1733551845188,-500.0,0.00012872,2]
[344565334,1733551845197,-500.0,0.00012872,2]
[344565335,1733551845207,-500.0,0.00012872,2]
[344565336,1733551845216,-1114.29,0.00012872,2]
[344565337,1733551845227,-235.52,0.00012872,2]
[344565338,1733551845235,-500.0,0.00012872,2]
[344565339,1733551845245,-500.0,0.00012872,2]
[344565340,1733551845254,-409.42,0.00012872,2]
[344565341,1733551845263,-500.0,0.00012872,2]
[344565342,1733551845273,-500.0,0.00012872,2]
[344565343,1733551845283,-500.0,0.00012872,2]
[344565344,1733551845292,-1670.14,0.00012872,2]
[344565345,1733551845302,-500.0,0.00012872,2]
[344565346,1733551845311,-500.0,0.00012872,2]
[344565347,1733551845324,-500.0,0.00012872,2]
[344565348,1733551845336,-500.0,0.00012872,2]
[344565349,1733551845348,-500.0,0.00012872,2]
[344565350,1733551845361,-500.0,0.00012872,2]
[344565351,1733551845376,-500.0,0.00012872,2]
[344565352,1733551845389,-500.0,0.00012872,2]
[344565353,1733551845401,-351.84,0.00012873,2]
[344565354,1733551845412,-500.0,0.00012873,2]
[344565355,1733551845425,-500.0,0.00012873,2]
[344565356,1733551845438,-500.0,0.00012873,2]
[344565357,1733551845450,-500.0,0.00012873,2]
[344565358,1733551845463,-500.0,0.00012873,2]
[344565359,1733551845476,-500.0,0.00012873,2]
[344565360,1733551845489,-151.61,0.00012873,2]
[344565361,1733551845501,-500.0,0.00012873,2]
[344565362,1733551845514,-500.0,0.00012873,2]
[344565363,1733551845525,-500.0,0.00012873,2]
[344565364,1733551845536,-500.0,0.00012873,2]
[344565365,1733551845549,-500.0,0.00012873,2]
[344565366,1733551845561,-500.0,0.00012873,2]
[344565367,1733551845575,-581.47,0.00012873,2]
[344565368,1733551845588,-60.3228683,0.00012873,2]
[344565369,1733551845605,-439.6771317,0.00012873,2]
[344565370,1733551845618,-500.0,0.00012873,2]
[344565371,1733551845631,-500.0,0.00012873,2]
[344565372,1733551845642,-500.0,0.00012873,2]
[344565373,1733551845654,-500.0,0.00012873,2]
[344565374,1733551845667,-500.0,0.00012873,2]
[344565375,1733551845681,-500.0,0.00012873,2]
[344565376,1733551845693,-32.42879538,0.00012873,2]
[344565377,1733551845709,-176.60120462,0.00012873,2]
[344565378,1733551845720,-500.0,0.00012873,2]
[344565379,1733551845733,-411.29391854,0.00012873,2]
[344565388,1733551846053,-1215.67416807,0.00012299,2]
[344565389,1733551846068,-500.0,0.00012324,2]
[344565390,1733551846079,-260.62,0.00012598,2]
[344565391,1733551846091,-88.70608146,0.00012873,2]
[344565392,1733551846103,-500.0,0.00012873,2]
[344565393,1733551846115,-58.14826132,0.00012873,2]
[344565394,1733551846129,-441.85173868,0.00012873,2]
[344565395,1733551846142,-500.0,0.00012873,2]
[344565396,1733551846154,-500.0,0.00012873,2]
[344565397,1733551846166,-500.0,0.00012873,2]
[344565398,1733551846177,-500.0,0.00012873,2]
[344565399,1733551846188,-423.19,0.00012873,2]
[344565400,1733551846200,-500.0,0.00012873,2]
[344565401,1733551846211,-500.0,0.00012873,2]
[344565402,1733551846223,-500.0,0.00012873,2]
[344565403,1733551846234,-500.0,0.00012873,2]
[344565404,1733551846246,-500.0,0.00012873,2]
[344565405,1733551846257,-500.0,0.00012873,2]
[344565406,1733551846269,-3000.0,0.00012873,2]
[344565407,1733551846280,-750.72512815,0.000129,4]
[344565408,1733551846294,-2849.27487185,0.000129,4]
[344565409,1733551846305,-1800.30155747,0.000129,2]
[344565410,1733551846325,-918.668841,0.000129,2]
[344565411,1733551846450,-974.62385853,0.00012223,2]
[344565412,1733551846462,-628.52695526,0.000129,2]
[344565413,1733551846476,-1988.71723038,0.000129,2]
[344565414,1733551846488,-1000.0,0.0001292,2]
[344565415,1733551846499,-621.6142264,0.00012967,2]
[344565426,1733553035561,-2766.19,7.677e-05,2]
[344565441,1733553038337,-3998.4261061,7.677e-05,2]
[344565442,1733553038347,-3805.09655968,7.677e-05,2]
[344565443,1733553038357,-16034.64558482,7.677e-05,2]
[344565444,1733553038367,-304.62003705,7.677e-05,2]
[344565445,1733553038377,-360.47451483,7.677e-05,2]
[344565446,1733553038386,-270.35588613,7.677e-05,2]
[344565447,1733553038397,-200.0,7.678e-05,2]
[344565448,1733553038409,-3132.20399726,7.678e-05,2]
[344565449,1733553038418,-200.0,7.678e-05,2]
[344565450,1733553038428,-406.1600494,7.678e-05,2]
[344565451,1733553038437,-200.0,7.678e-05,2]
[344565452,1733553038447,-12025.98418862,7.678e-05,2]
[344565453,1733553038456,-640.84358193,7.679e-05,2]
[344565454,1733553038466,-4176.27199635,7.679e-05,2]
[344565455,1733553038475,-202.76691459,7.679e-05,2]
[344565456,1733553038484,-640.84358193,7.679e-05,2]
[344565457,1733553038494,-406.1600494,7.679e-05,2]
[344565458,1733553038503,-200.0,7.679e-05,2]
[344565459,1733553038513,-244.75905795,7.679e-05,2]
[344565460,1733553038522,-200.0,7.679e-05,2]
[344565461,1733553038531,-304.62003705,7.679e-05,2]
[344565462,1733553038540,-200.0,7.679e-05,2]
[344565463,1733553038549,-200.0,7.679e-05,2]
[344565464,1733553038558,-244.75905795,7.68e-05,2]
[344565465,1733553038567,-200.0,7.68e-05,2]
[344565466,1733553038576,-426.72747375,7.68e-05,2]
[344565467,1733553038585,-200.0,7.68e-05,2]
[344565468,1733553038594,-435.12721412,7.68e-05,2]
[344565469,1733553038604,-3805.09655968,7.681e-05,2]
[344565471,1733553038613,-3132.20399726,7.681e-05,2]
[344565472,1733553038623,-304.62003705,7.681e-05,2]
[344565474,1733553038633,-3805.09655968,7.681e-05,2]
[344565475,1733553038642,-200.0,7.681e-05,2]
[344565476,1733553038651,-202.76691459,7.681e-05,2]
[344565477,1733553038660,-200.0,7.681e-05,2]
[344565478,1733553038669,-200.0,7.681e-05,2]
[344565479,1733553038678,-200.0,7.681e-05,2]
[344565480,1733553038687,-328.28885461,7.682e-05,2]
[344565481,1733553038696,-200.0,7.682e-05,2]
[344565482,1733553038705,-200.0,7.682e-05,2]
[344565483,1733553038714,-16034.64558482,7.682e-05,2]
[344565484,1733553038724,-640.84358193,7.682e-05,2]
[344565485,1733553038734,-11094.90155369,7.683e-05,2]
[344565486,1733553038745,-931.08263493,7.683e-05,2]
[344565487,1733553038755,-480.63268644,7.683e-05,2]
[344565488,1733553038763,-200.0,7.683e-05,2]
[344565489,1733553038772,-1898.70082597,7.683e-05,2]
[344565490,1733553038783,-3174.7612536,7.683e-05,2]
[344565491,1733553038792,-1307.0399937,7.683e-05,2]
[344565493,1733553040342,-2869.23200265,7.683e-05,2]
[344565494,1733553040353,-200.0,7.683e-05,2]
[344565495,1733553040362,-3805.09655968,7.683e-05,2]
[344565496,1733553040372,-406.1600494,7.683e-05,2]
[344565497,1733553040381,-200.0,7.683e-05,2]
[344565498,1733553040390,-200.0,7.684e-05,2]
[344565499,1733553040400,-228.46502779,7.684e-05,2]
[344565500,1733553040411,-228.46502779,7.684e-05,2]
[344565501,1733553040420,-11843.7835303,7.684e-05,2]
[344565518,1733553043304,-182.20065832,7.684e-05,2]
[344565519,1733553043314,-480.63268644,7.684e-05,2]
[344565520,1733553043323,-200.0,7.684e-05,2]
[344565521,1733553043333,-200.0,7.684e-05,2]
[344565522,1733553043342,-435.12721412,7.685e-05,2]
[344565523,1733553043351,-328.28885461,7.685e-05,2]
[344565524,1733553043360,-12025.98418862,7.685e-05,2]
[344565525,1733553043371,-200.0,7.685e-05,2]
[344565526,1733553043380,-326.34541059,7.685e-05,2]
[344565527,1733553043389,-304.62003705,7.685e-05,2]
[344565528,1733553043399,-270.35588613,7.685e-05,2]
[344565529,1733553043412,-9019.48814146,7.685e-05,2]
[344565530,1733553043422,-3805.09655968,7.686e-05,2]
[344565531,1733553043431,-406.1600494,7.686e-05,2]
[344565532,1733553043441,-326.34541059,7.686e-05,2]
[344565533,1733553043451,-480.63268644,7.686e-05,2]
[344565534,1733553043460,-244.75905795,7.686e-05,2]
[344565535,1733553043469,-200.0,7.686e-05,2]
[344565536,1733553043481,-200.0,7.686e-05,2]
[344565537,1733553043490,-270.35588613,7.686e-05,2]
[344565538,1733553043498,-3805.09655968,7.687e-05,2]
[344565539,1733553043507,-640.84358193,7.687e-05,2]
[344565540,1733553043517,-435.12721412,7.687e-05,2]
[344565541,1733553043526,-228.46502779,7.687e-05,2]
[344565542,1733553043535,-200.0,7.687e-05,2]
[344565543,1733553043544,-16034.64558482,7.687e-05,2]
[344565544,1733553043552,-200.0,7.687e-05,2]
[344565545,1733553043561,-640.84358193,7.688e-05,2]
[344565546,1733553043570,-200.0,7.688e-05,2]
[344565547,1733553043580,-5073.46207957,7.688e-05,2]
[344565548,1733553043589,-3132.20399726,7.688e-05,2]
[344565549,1733553043598,-270.35588613,7.688e-05,2]
[344565550,1733553043608,-200.0,7.688e-05,2]
[344565551,1733553043617,-200.0,7.688e-05,2]
[344565552,1733553043627,-244.75905795,7.688e-05,2]
[344565553,1733553043636,-202.76691459,7.688e-05,2]
[344565554,1733553043646,-6764.6161061,7.688e-05,2]
[344565555,1733553043655,-6764.6161061,7.689e-05,2]
[344565556,1733553043664,-200.0,7.689e-05,2]
[344565557,1733553043673,-287.86534395,7.689e-05,2]
[344565558,1733553043682,-200.0,7.689e-05,2]
[344565559,1733553043691,-6764.6161061,7.689e-05,2]
[344565560,1733553043701,-5073.46207957,7.689e-05,2]
[344565561,1733553043710,-326.34541059,7.69e-05,2]
[344565562,1733553043719,-3132.20399726,7.69e-05,2]
[344565563,1733553043728,-200.0,7.69e-05,2]
[344565564,1733553043738,-3132.20399726,7.69e-05,2]
[344565567,1733553043954,-200.0,7.69e-05,2]
[344565568,1733553043970,-287.86534395,7.69e-05,2]
[344565569,1733553043980,-328.28885461,7.69e-05,2]
[344565570,1733553043989,-200.0,7.69e-05,2]
[344565571,1733553043998,-200.0,7.69e-05,2]
[344565572,1733553044007,-360.47451483,7.691e-05,2]
[344565573,1733553044016,-200.0,7.691e-05,2]
[344565574,1733553044025,-200.0,7.691e-05,2]
[344565575,1733553044036,-200.0,7.691e-05,2]
[344565576,1733553044045,-244.75905795,7.691e-05,2]
[344565577,1733553044054,-270.35588613,7.691e-05,2]
[344565578,1733553044062,-200.0,7.691e-05,2]
[344565579,1733553044071,-12025.98418862,7.691e-05,2]
[344565580,1733553044080,-426.72747375,7.691e-05,2]
[344565581,1733553044089,-5073.46207957,7.691e-05,2]
[344565582,1733553044099,-435.12721412,7.691e-05,2]
[344565583,1733553044108,-244.75905795,7.692e-05,2]
[344565584,1733553044118,-360.47451483,7.692e-05,2]
[344565585,1733553044130,-16034.64558482,7.692e-05,2]
[344565586,1733553044139,-200.0,7.692e-05,2]
[344565587,1733553044149,-12025.98418862,7.692e-05,2]
[344565588,1733553044158,-640.84358193,7.692e-05,2]
[344565589,1733553044167,-426.72747375,7.692e-05,2]
[344565590,1733553044177,-480.63268644,7.692e-05,2]
[344565591,1733553044186,-228.46502779,7.692e-05,2]
[344565592,1733553044194,-16034.64558482,7.692e-05,2]
[344565593,1733553044204,-9019.48814146,7.692e-05,2]
[344565594,1733553044213,-6764.6161061,7.692e-05,2]
[344565595,1733553044222,-304.62003705,7.692e-05,2]
[344565596,1733553044232,-326.34541059,7.693e-05,2]
[344565597,1733553044241,-200.0,7.693e-05,2]
[344565598,1733553044250,-9019.48814146,7.693e-05,2]
[344565599,1733553044259,-9019.48814146,7.693e-05,2]
[344565600,1733553044269,-426.72747375,7.693e-05,2]
[344565601,1733553044278,-200.0,7.693e-05,2]
[344565602,1733553044288,-200.0,7.693e-05,2]
[344565603,1733553044297,-326.34541059,7.694e-05,2]
[344565604,1733553044306,-287.86534395,7.694e-05,2]
[344565605,1733553044315,-200.0,7.694e-05,2]
[344565606,1733553044325,-4176.27199635,7.694e-05,2]
[344565607,1733553044334,-202.76691459,7.694e-05,2]
[344565608,1733553044344,-16034.64558482,7.694e-05,2]
[344565609,1733553044355,-202.76691459,7.694e-05,2]
[344565610,1733553044365,-304.62003705,7.695e-05,2]
[344565611,1733553044375,-360.47451483,7.695e-05,2]
[344565612,1733553044384,-200.0,7.695e-05,2]
[344565613,1733553044393,-360.47451483,7.695e-05,2]
[344565614,1733553044405,-480.63268644,7.695e-05,2]
[344565615,1733553044416,-4176.27199635,7.695e-05,2]
[344565616,1733553044426,-426.72747375,7.695e-05,2]
[344565617,1733553044435,-200.0,7.695e-05,2]
[344565618,1733553044445,-200.0,7.695e-05,2]
[344565619,1733553044454,-435.12721412,7.696e-05,2]
[344565620,1733553044463,-328.28885461,7.696e-05,2]
[344565621,1733553044472,-228.46502779,7.696e-05,2]
[344565622,1733553044482,-328.28885461,7.696e-05,2]
[344565623,1733553044492,-435.12721412,7.696e-05,2]
[344565624,1733553044501,-200.0,7.696e-05,2]
[344565625,1733553044511,-200.0,7.696e-05,2]
[344565626,1733553044522,-4176.27199635,7.696e-05,2]
[344565627,1733553044531,-228.46502779,7.696e-05,2]
[344565628,1733553044542,-200.0,7.696e-05,2]
[344565629,1733553044551,-406.1600494,7.696e-05,2]
[344565630,1733553044560,-200.0,7.696e-05,2]
[344565631,1733553044570,-200.0,7.696e-05,2]
[344565632,1733553044580,-200.0,7.696e-05,2]
[344565633,1733553044590,-9019.48814146,7.696e-05,2]
[344565634,1733553044599,-202.76691459,7.697e-05,2]
[344565635,1733553044608,-287.86534395,7.697e-05,2]
[344565636,1733553044618,-287.86534395,7.697e-05,2]
[344565637,1733553044630,-200.0,7.697e-05,2]
[344565638,1733553044640,-5073.46207957,7.697e-05,2]
[344565639,1733553044649,-9019.48814146,7.697e-05,2]
[344565640,1733553044659,-4073.16623441,7.698e-05,2]
[344565641,1733553044688,-1000.29584516,7.698e-05,2]
[344565642,1733553044698,-200.0,7.698e-05,2]
[344565643,1733553044707,-200.0,7.698e-05,2]
[344565644,1733553044716,-4176.27199635,7.698e-05,2]
[344565645,1733553044727,-287.86534395,7.698e-05,2]
[344565646,1733553044737,-326.34541059,7.698e-05,2]
[344565647,1733553044746,-200.0,7.699e-05,2]
[344565648,1733553044755,-3132.20399726,7.699e-05,2]
[344565649,1733553044765,-406.1600494,7.699e-05,2]
[344565650,1733553044774,-200.0,7.699e-05,2]
[344565651,1733553044784,-6764.6161061,7.699e-05,2]
[344565652,1733553044793,-200.0,7.699e-05,2]
[344565653,1733553044802,-480.63268644,7.699e-05,2]
[344565654,1733553044811,-360.47451483,7.699e-05,2]
[344565655,1733553044821,-200.0,7.699e-05,2]
[344565656,1733553044830,-328.28885461,7.699e-05,2]
[344565657,1733553044839,-270.35588613,7.699e-05,2]
[344565658,1733553044849,-200.0,7.7e-05,2]
[344565659,1733553044858,-200.0,7.7e-05,2]
[344565660,1733553044867,-200.0,7.7e-05,2]
[344565661,1733553044882,-200.0,7.7e-05,2]
[344565662,1733553044892,-426.72747375,7.7e-05,2]
[344565663,1733553044901,-154.86,9.016e-05,2]
[344565664,1733553044911,-1014.0,9.3e-05,2]
[344565665,1733553044920,-1194.88192352,9.4e-05,2]
[344565666,1733553044929,-1047.42,9.483e-05,2]
[344565667,1733553044939,-446.747514,9.948e-05,2]
[344565668,1733553044948,-300.0,9.999e-05,2]
[344565669,1733553044957,-6606.08955047,0.0001,2]
[344565670,1733553044966,-691.85,0.00011224,2]
[344565671,1733553044975,-154.86,0.0001127,2]
[344565672,1733553044985,-150.0,0.0001131,2]
[344565673,1733553044994,-250.0,0.00011311,2]
[344565674,1733553045003,-180.02,0.00011412,2]
[344565675,1733553045012,-150.0,0.00011424,2]
[344565676,1733553045021,-250.0,0.00011448,2]
[344565677,1733553045030,-8750.19,0.00011449,2]
[344565678,1733553045039,-168.94,0.0001147,2]
[344565679,1733553045048,-1000.0,0.00011493,2]
[344565680,1733553045057,-2751.0,0.00011507,2]
[344565681,1733553045066,-435.2,0.00011678,2]
[344565682,1733553045076,-496.15,0.00011716,2]
[344565683,1733553045085,-490.21,0.0001173,2]
[344565684,1733553045095,-1047.42,0.00011747,2]
[344565685,1733553045103,-150.0,0.0001177,2]
[344565686,1733553045114,-435.2,0.00011778,2]
[344565687,1733553045123,-435.2,0.00011878,2]
[344565688,1733553045132,-1644.986,0.00012322,2]
[344565689,1733553045141,-173.774,0.00012322,2]
[344565690,1733553045150,-150.0,0.00012322,2]
[344565691,1733553045159,-54450.1,0.00012329,2]
[344565692,1733553045170,-476.446,0.0001235,2]
[344565693,1733553045179,-435.2,0.00012359,2]
[344565694,1733553045189,-450.29,0.00012359,2]
[344565695,1733553045199,-1000.0,0.00012497,2]
[344565696,1733553045208,-200.0,0.00012591,2]
[344565697,1733553045218,-691.85,0.00012627,2]
[344565698,1733553045229,-427.93892509,0.00012672,2]
[344565699,1733553045239,-364.0,0.000127,2]
[344565700,1733553045249,-230.0,0.000127,2]
[344565701,1733553045258,-1083.38902237,0.00012708,2]
[344565702,1733553045267,-1107.877126,0.00012708,2]
[344565703,1733553045277,-2500.0,0.00012776,2]
[344565704,1733553045286,-972.53933451,0.00012776,2]
[344565705,1733553045295,-972.53933445,0.0001279,2]